bitfinex-derivatives/quotes_SOLF0:USTF0_20250625
["timestamp","ask_amount","ask_price","bid_price","bid_amount"]
[1750823781943,2.17087637,145.68,145.65,15.33910238]
[1750823782145,11.89488755,145.67,145.65,15.33910238]
[1750823782350,6.8613,145.67,145.65,15.33910238]
[1750823783345,6.8613,145.67,145.65,8.47710238]
[1750823786746,5.01965405,145.66,145.65,8.47710238]
[1750823786947,14.05223042,145.66,145.65,8.47710238]
[1750823787147,11.54378689,145.66,145.6,12.78526313]
[1750823787350,2.17198779,145.63,145.6,12.78526313]
[1750823787546,2.17198779,145.63,145.6,19.64976313]
[1750823787547,9.03558779,145.63,145.6,19.64976313]
[1750823787749,2.17198779,145.62,145.6,12.78526313]
[1750823787944,7.19091361,145.61,145.57,12.78526313]
[1750823788153,6.8652,145.59,145.56,21.82345092]
[1750823788856,6.8652,145.59,145.57,6.866]
[1750823789542,2.17198779,145.6,145.57,6.866]
[1750823789543,9.03678779,145.6,145.57,6.866]
[1750823789750,9.03678779,145.6,145.56,9.03828779]
[1750823789950,6.8648,145.6,145.57,2.17198779]
[1750823790151,6.8648,145.6,145.55,50.33216313]
[1750823790345,6.8648,145.6,145.57,6.8657]
[1750823790551,35.2,145.64,145.58,12.78526313]
[1750823790852,35.2,145.64,145.59,6.8646]
[1750823791153,6.8639,145.62,145.57,16.18021821]
[1750823791453,6.8639,145.62,145.59,6.8646]
[1750823791954,6.8639,145.62,145.58,12.78526313]
[1750823792754,6.8639,145.62,145.59,6.8648]
[1750823793756,6.8634,145.63,145.6,6.8645]
[1750823794459,6.8634,145.63,145.58,2.4201]
[1750823794959,6.8634,145.63,145.58,15.20536313]
[1750823795158,42.0628,145.64,145.58,15.20536313]
[1750823795460,35.2,145.64,145.59,3.39495508]
[1750823795651,6.862,145.66,145.59,3.39495508]
[1750823795854,11.85412429,145.65,145.62,6.8632]
[1750823796150,38.61495508,145.67,145.6,15.19816313]
[1750823796356,11.85384783,145.66,145.6,15.19816313]
[1750823796556,6.8619,145.66,145.6,15.19816313]
[1750823797261,6.8619,145.66,145.63,6.8627]
[1750823808576,6.8623,145.65,145.63,6.8627]
[1750823810275,6.8619,145.66,145.64,6.8626]
[1750823810478,6.8619,145.66,145.6,15.19816313]
[1750823810678,42.082,145.67,145.6,15.19816313]
[1750823810679,42.082,145.67,145.6,18.59311821]
[1750823810970,8.39759858,145.66,145.6,2.4129]
[1750823811172,3.39495508,145.66,145.6,2.4129]
[1750823811374,6.8629,145.64,145.61,6.8638]
[1750823811570,3.39495508,145.66,145.61,6.8638]
[1750823812066,6.863,145.64,145.62,6.8635]
[1750823812677,6.8623,145.65,145.62,6.8633]
[1750823814678,9.033883,145.65,145.62,6.8633]
[1750823814979,2.171583,145.65,145.63,6.863]
[1750823815179,9.033483,145.66,145.63,6.863]
[1750823815372,2.171583,145.66,145.61,2.171583]
[1750823815567,9.033983,145.65,145.62,6.8634]
[1750823815876,2.171583,145.65,145.61,2.171583]
[1750823816276,2.171583,145.65,145.63,6.8629]
[1750823819382,9.033783,145.65,145.63,6.8629]
[1750823821788,2.171583,145.65,145.63,6.8629]
[1750823822091,2.171583,145.66,145.64,6.8626]
[1750823822591,35.22,145.67,145.65,6.8619]
[1750823822778,35.22,145.67,145.63,2.171583]
[1750823822779,37.391583,145.67,145.63,10.71610222]
[1750823823383,44.252983,145.67,145.64,6.8624]
[1750823823778,4.98420455,145.66,145.64,6.8624]
[1750823823978,44.252983,145.67,145.64,6.8624]
[1750823824180,4.98426526,145.66,145.64,6.8624]
[1750823824382,44.252983,145.67,145.64,6.8624]
[1750823826389,6.8618,145.66,145.64,6.8624]
[1750823826586,9.033383,145.66,145.64,6.8624]
[1750823827181,6.8618,145.66,145.64,6.8624]
[1750823827588,9.033383,145.66,145.63,15.40741922]
[1750823827792,9.033383,145.66,145.63,8.54451922]
[1750823827991,9.033383,145.66,145.63,15.40741922]
[1750823828893,9.033383,145.66,145.63,6.8629]
[1750823829389,9.033383,145.66,145.62,15.40791922]
[1750823829390,6.8622,145.65,145.62,15.40791922]
[1750823829887,2.171583,145.66,145.62,8.54451922]
[1750823830289,9.033783,145.66,145.63,6.8631]
[1750823830487,6.8622,145.66,145.63,6.8631]
[1750823830790,9.033783,145.66,145.63,15.40761922]
[1750823832794,9.033783,145.66,145.64,8.54451922]
[1750823832990,2.171583,145.66,145.63,15.40761922]
[1750823833384,35.22,145.67,145.63,15.40761922]
[1750823833586,14.01950433,145.66,145.63,15.40761922]
[1750823833786,9.033583,145.66,145.63,15.40761922]
[1750823833988,9.033583,145.66,145.63,6.8631]
[1750823834389,4.99280664,145.65,145.63,6.8631]
[1750823834580,9.033583,145.66,145.63,6.8631]
[1750823834788,4.99280664,145.65,145.63,6.8631]
[1750823835090,2.171583,145.66,145.63,6.8631]
[1750823835290,4.9928356,145.65,145.63,6.8631]
[1750823835492,9.033583,145.66,145.63,6.8631]
[1750823835693,4.99283657,145.65,145.63,6.8631]
[1750823835991,9.033583,145.66,145.63,6.8631]
[1750823836186,4.99536801,145.65,145.63,6.8631]
[1750823836387,6.8622,145.65,145.63,6.8631]
[1750823837194,4.9953766,145.64,145.62,6.8633]
[1750823837495,6.8622,145.65,145.63,8.56291604]
[1750823837695,4.99562998,145.64,145.63,8.56291604]
[1750823838597,6.8622,145.65,145.63,8.56291604]
[1750823838803,4.99896596,145.64,145.63,8.56291604]
[1750823839898,14.03324896,145.64,145.63,8.56291604]
[1750823840098,7.17054896,145.64,145.62,8.56291604]
[1750823840400,4.99896596,145.63,145.62,8.56291604]
[1750823841198,11.86206596,145.63,145.62,8.56291604]
[1750823843001,4.99896596,145.63,145.62,8.56291604]
[1750823846206,9.034483,145.64,145.62,8.56291604]
[1750823846601,4.99217784,145.63,145.62,8.56291604]
[1750823847105,9.034483,145.64,145.62,8.56291604]
[1750823847300,4.99221451,145.63,145.62,8.56291604]
[1750823847700,11.85531451,145.63,145.62,8.56291604]
[1750823848407,11.8548647,145.63,145.62,8.56291604]
[1750823848809,4.9917647,145.63,145.62,8.56291604]
[1750823849003,9.034483,145.64,145.62,8.56291604]
[1750823851312,9.034483,145.64,145.61,6.864]
[1750823851313,4.99126931,145.63,145.61,15.42691604]
[1750823851504,9.034483,145.64,145.61,15.42691604]
[1750823851705,4.99031123,145.63,145.61,15.42691604]
[1750823851900,9.034483,145.64,145.61,15.42691604]
[1750823852097,4.99033987,145.63,145.61,15.42691604]
[1750823852302,9.034483,145.64,145.61,15.42691604]
[1750823852499,4.99033997,145.63,145.61,15.42691604]
[1750823852706,9.034483,145.64,145.61,15.42691604]
[1750823852907,4.99041322,145.63,145.61,15.42691604]
[1750823853106,9.034483,145.64,145.61,15.42691604]
[1750823853308,4.98931605,145.63,145.61,15.42691604]
[1750823853618,9.034483,145.64,145.61,15.42691604]
[1750823853821,4.98929828,145.63,145.61,15.42691604]
[1750823854009,9.034483,145.64,145.61,15.42691604]
[1750823854311,4.98884508,145.63,145.61,15.42691604]
[1750823854515,9.034483,145.64,145.61,15.42691604]
[1750823854715,4.98817882,145.63,145.61,15.42691604]
[1750823854914,9.034483,145.64,145.61,15.42691604]
[1750823855115,4.98810038,145.63,145.61,15.42691604]
[1750823855316,9.034483,145.64,145.61,15.42691604]
[1750823855510,4.98810252,145.63,145.61,15.42691604]
[1750823855711,9.034483,145.64,145.61,15.42691604]
[1750823855913,4.99180104,145.63,145.61,15.42691604]
[1750823856112,9.034483,145.64,145.61,15.42691604]
[1750823856315,4.99151039,145.63,145.61,15.42691604]
[1750823856515,9.034483,145.64,145.61,15.42691604]
[1750823856815,4.99154073,145.63,145.61,15.42691604]
[1750823857016,9.034483,145.64,145.61,15.42691604]
[1750823857216,4.99098606,145.63,145.61,15.42691604]
[1750823857412,9.034483,145.64,145.61,15.42691604]
[1750823857622,4.98940544,145.63,145.61,15.42691604]
[1750823857922,9.034483,145.64,145.61,15.42691604]
[1750823858120,4.98944675,145.63,145.61,15.42691604]
[1750823858316,9.034483,145.64,145.61,15.42691604]
[1750823858521,4.98940251,145.63,145.61,15.42691604]
[1750823858722,9.034483,145.64,145.61,15.42691604]
[1750823859023,4.98908664,145.63,145.61,15.42691604]
[1750823859322,9.034483,145.64,145.61,15.42691604]
[1750823859523,4.98904788,145.63,145.61,15.42691604]
[1750823859713,9.034483,145.64,145.61,15.42691604]
[1750823859915,4.98900747,145.63,145.61,15.42691604]
[1750823860115,9.034483,145.64,145.61,15.42691604]
[1750823860326,4.98904417,145.63,145.61,15.42691604]
[1750823860624,9.034483,145.64,145.61,15.42691604]
[1750823861028,4.98866087,145.63,145.61,15.42691604]
[1750823861219,6.8629,145.64,145.62,6.8636]
[1750823861421,4.98866087,145.63,145.62,6.8636]
[1750823862117,4.98866087,145.63,145.59,2.17282156]
[1750823862321,4.98893426,145.62,145.59,6.79902156]
[1750823862521,6.8636,145.62,145.59,2.4136]
[1750823863319,6.8642,145.61,145.59,2.4136]
[1750823865318,6.8646,145.6,145.59,2.4136]
[1750823865920,7.15227043,145.6,145.56,2.3556]
[1750823866219,7.15187547,145.59,145.54,4.53064111]
[1750823866420,2.17274111,145.58,145.54,4.53064111]
[1750823867122,6.8662,145.57,145.54,11.39804111]
[1750823871231,6.8662,145.57,145.55,6.8668]
[1750823872332,9.03844111,145.58,145.55,6.8668]
[1750823872926,6.8652,145.59,145.54,4.53064111]
[1750823873131,6.8652,145.59,145.56,2.17274111]
[1750823873626,43.73754111,145.6,145.56,2.17274111]
[1750823873833,2.17274111,145.59,145.55,2.17274111]
[1750823874134,9.03824111,145.58,145.55,6.8668]
[1750823875923,2.17274111,145.57,145.55,6.8668]
[1750823876339,6.8655,145.58,145.55,6.8668]
[1750823876538,2.17274111,145.57,145.55,6.8668]
[1750823884836,9.03914111,145.57,145.54,9.2252]
[1750823885038,2.17274111,145.55,145.54,2.3579]
[1750823885245,2.17274111,145.55,145.53,2.2126]
[1750823885441,2.17274111,145.54,145.53,2.2126]
[1750823886841,9.04014111,145.54,145.53,2.2126]
[1750823887047,9.04014111,145.54,145.5,39.3647]
[1750823887244,2.17274111,145.54,145.5,7.1951]
[1750823887436,2.17274111,145.54,145.51,6.8687]
[1750823887742,2.17274111,145.54,145.5,9.36784111]
[1750823888135,2.17274111,145.54,145.5,7.1951]
[1750823888336,2.17274111,145.54,145.51,6.8687]
[1750823888546,2.17274111,145.54,145.5,9.36784111]
[1750823888943,34.56,145.56,145.53,6.8678]
[1750823889248,2.17274111,145.55,145.53,6.8678]
[1750823889448,34.56,145.56,145.55,6.8669]
[1750823889641,2.17274111,145.57,145.55,6.8669]
[1750823890745,2.17274111,145.57,145.56,6.8664]
[1750823891541,2.17274111,145.58,145.56,6.8664]
[1750823893055,2.17274111,145.57,145.56,6.8664]
[1750823893449,2.17274111,145.57,145.55,6.8667]
[1750823893657,2.17274111,145.56,145.52,2.17274111]
[1750823894048,2.17274111,145.55,145.51,34.56]
[1750823894252,2.17274111,145.55,145.51,36.73274111]
[1750823894948,2.17274111,145.54,145.53,6.8675]
[1750823895552,2.17274111,145.55,145.53,6.8675]
[1750823896155,2.17274111,145.55,145.54,6.8674]
[1750823897555,2.17274111,145.55,145.53,6.8677]
[1750823897943,6.8665,145.56,145.53,6.8677]
[1750823898149,2.17274111,145.57,145.53,2.17274111]
[1750823898843,2.17274111,145.57,145.55,6.8666]
[1750823899048,2.17274111,145.57,145.53,2.17274111]
[1750823899758,2.17274111,145.57,145.55,6.8665]
[1750823902555,2.17274111,145.57,145.56,6.8664]
[1750823908262,2.17274111,145.58,145.53,2.17274111]
[1750823908654,2.17274111,145.56,145.52,12.80392747]
[1750823908850,2.17274111,145.56,145.52,14.97666858]
[1750823909255,2.17274111,145.57,145.52,14.97666858]
[1750823909557,2.17274111,145.57,145.55,6.8667]
[1750823911973,34.56,145.59,145.54,2.17274111]
[1750823912265,7.13431782,145.58,145.54,2.17274111]
[1750823912468,2.17274111,145.58,145.56,6.8661]
[1750823912674,2.17274111,145.58,145.54,2.17274111]
[1750823912965,2.17274111,145.58,145.56,6.8662]
[1750823913569,41.4253,145.59,145.56,6.8662]
[1750823913772,7.13425586,145.58,145.56,6.8662]
[1750823913968,2.17274111,145.58,145.56,6.8662]
[1750823915270,2.17274111,145.57,145.56,6.8662]
[1750823916072,2.17274111,145.57,145.55,6.8666]
[1750823916572,2.17381575,145.57,145.55,6.8666]
[1750823919975,2.17381575,145.57,145.56,6.8664]
[1750823920177,2.17362683,145.57,145.56,6.8664]
[1750823921278,2.17362683,145.58,145.56,6.8664]
[1750823922077,2.17362683,145.58,145.57,6.866]
[1750823922280,7.13507258,145.58,145.57,6.866]
[1750823923073,7.13515171,145.58,145.57,6.866]
[1750823926082,7.13506553,145.58,145.57,6.866]
[1750823928282,7.13506553,145.58,145.56,6.8662]
[1750823928484,2.17362683,145.57,145.56,6.8662]
[1750823929572,41.4251,145.59,145.56,6.8662]
[1750823929782,4.96063901,145.58,145.56,6.8662]
[1750823930085,2.17362683,145.57,145.56,6.8662]
[1750823932082,2.17362683,145.58,145.57,6.8655]
[1750823932285,7.13633129,145.58,145.57,6.8655]
[1750823935385,4.96270446,145.58,145.57,6.8655]
[1750823935687,6.49755426,145.61,145.56,14.9775543]
[1750823935888,9.03782683,145.61,145.56,14.9775543]
[1750823936287,2.17362683,145.6,145.58,6.8651]
[1750823936489,2.17362683,145.6,145.56,14.9775543]
[1750823937187,2.17362683,145.6,145.56,2.17362683]
[1750823937387,2.17362683,145.6,145.58,6.8651]
[1750823938787,2.17362683,145.59,145.58,6.8651]
[1750823940486,2.17362683,145.59,145.57,6.8658]
[1750823940681,2.17362683,145.58,145.55,19.61392747]
[1750823941085,2.17362683,145.57,145.55,4.4565]
[1750823941394,2.17362683,145.57,145.55,9.0984]
[1750823943292,9.03962683,145.57,145.55,2.2319]
[1750823943490,2.17362683,145.56,145.54,6.8672]
[1750823943695,2.17362683,145.56,145.53,12.80392747]
[1750823944093,2.17362683,145.56,145.54,6.867]
[1750823946799,6.8661,145.57,145.54,6.867]
[1750823947094,9.03972683,145.57,145.54,6.867]
[1750823947898,2.17362683,145.56,145.54,6.867]
[1750823950402,2.17362683,145.56,145.55,6.8669]
[1750823950697,34.54,145.58,145.54,2.17362683]
[1750823950901,4.89536782,145.57,145.54,2.17362683]
[1750823951095,34.54,145.58,145.56,6.8662]
[1750823951397,34.54,145.58,145.53,12.80392747]
[1750823951701,34.54,145.58,145.54,6.8671]
[1750823951702,2.17362683,145.56,145.54,6.8671]
[1750823953898,2.17362683,145.57,145.55,6.8669]
[1750823954506,2.17362683,145.56,145.55,6.8669]
[1750823954806,2.17362683,145.57,145.55,6.8669]
[1750823955006,9.03972683,145.57,145.54,6.8672]
[1750823956906,2.17362683,145.56,145.54,6.8672]
[1750823958604,2.17362683,145.55,145.52,12.80392747]
[1750823958911,2.17362683,145.54,145.51,4.7332]
[1750823959704,9.04122683,145.54,145.51,11.6017]
[1750823960010,9.04122683,145.54,145.51,4.7332]
[1750823960611,9.04122683,145.54,145.51,11.6018]
[1750823961909,2.17362683,145.52,145.49,5.6631612]
[1750823962307,9.04192683,145.52,145.49,5.6631612]
[1750823963723,9.04192683,145.52,145.49,12.5326612]
[1750823966632,2.17362683,145.51,145.49,12.5326612]
[1750823969933,6.8683,145.52,145.5,6.8693]
[1750823970130,2.17362683,145.51,145.5,6.8693]
[1750823975132,2.17362683,145.51,145.49,12.5326612]
[1750823976235,9.04192683,145.52,145.49,12.5326612]
[1750823978633,34.54,145.54,145.5,2.17362683]
[1750823978826,36.71362683,145.54,145.49,5.6631612]
[1750823979032,36.71362683,145.54,145.5,2.17362683]
[1750823979234,2.17362683,145.53,145.49,5.6631612]
[1750823979434,2.17362683,145.52,145.49,5.6631612]
[1750823979935,2.17362683,145.52,145.5,6.869]
[1750823981239,6.8681,145.53,145.5,6.869]
[1750823981437,2.17362683,145.52,145.51,6.8687]
[1750823981834,6.8681,145.53,145.51,6.8687]
[1750823982037,9.04172683,145.53,145.51,6.8687]
[1750823987345,2.17362683,145.52,145.5,6.869]
[1750823987538,9.04202683,145.52,145.5,6.869]
[1750823988337,9.04202683,145.52,145.49,5.6631612]
[1750823988843,9.04202683,145.52,145.49,12.5326612]
[1750823994254,9.04242683,145.51,145.49,12.5326612]
[1750823997349,9.04222683,145.52,145.49,12.5326612]
[1750824000947,9.04222683,145.52,145.5,6.8692]
[1750824002353,2.17362683,145.52,145.51,6.8688]
[1750824002550,34.54,145.54,145.49,20.6407155]
[1750824002854,36.714558,145.54,145.5,2.174558]
[1750824003247,36.714558,145.54,145.53,6.8679]
[1750824003451,39.39802773,145.54,145.53,6.8679]
[1750824003651,2.174558,145.55,145.51,2.174558]
[1750824003652,2.174558,145.55,145.54,6.8674]
[1750824003858,2.174558,145.55,145.51,2.174558]
[1750824003859,7.03288063,145.55,145.51,2.2898]
[1750824004153,2.17430825,145.54,145.51,15.09372747]
[1750824004557,2.17430825,145.55,145.51,15.09372747]
[1750824004759,2.17430825,145.56,145.52,2.17430825]
[1750824004959,2.17430825,145.56,145.53,12.80392747]
[1750824005262,2.17430825,145.56,145.54,6.8673]
[1750824008065,2.17430825,145.56,145.55,6.8669]
[1750824008256,36.69430825,145.57,145.55,6.8669]
[1750824009367,36.69430825,145.57,145.56,6.8664]
[1750824009666,34.52,145.57,145.56,6.8664]
[1750824010157,2.17430825,145.58,145.56,6.8664]
[1750824010354,2.17430825,145.58,145.57,6.866]
[1750824011366,6.8651,145.59,145.54,2.17430825]
[1750824011560,2.17430825,145.59,145.55,2.17430825]
[1750824011764,2.17430825,145.59,145.57,6.8656]
[1750824012364,2.17430825,145.58,145.57,6.8656]
[1750824013567,2.17430825,145.58,145.53,2.319]
[1750824013767,2.17430825,145.56,145.53,2.319]
[1750824014269,2.17430825,145.56,145.55,6.8667]
[1750824014471,2.17430825,145.56,145.53,2.319]
[1750824014672,2.17430825,145.56,145.54,6.8671]
[1750824015178,6.866,145.57,145.54,6.8671]
[1750824015472,9.04030825,145.57,145.54,6.8671]
[1750824019473,9.04030825,145.57,145.55,6.8668]
[1750824019676,34.52,145.6,145.55,2.17430825]
[1750824019872,2.17430825,145.59,145.56,6.8662]
[1750824020172,9.03960825,145.59,145.56,6.8662]
[1750824021881,2.17430825,145.58,145.56,6.8662]
[1750824023382,6.8653,145.59,145.56,6.8662]
[1750824023576,2.17430825,145.58,145.56,6.8662]
[1750824023780,9.03980825,145.58,145.55,6.8667]
[1750824024076,2.17430825,145.57,145.53,4.58450825]
[1750824024283,2.17430825,145.56,145.54,6.867]
[1750824024581,2.17430825,145.55,145.51,2.2898]
[1750824024786,2.17430825,145.53,145.51,2.2898]
[1750824025579,2.17430825,145.53,145.51,9.1582]
[1750824025779,2.17430825,145.53,145.51,2.2898]
[1750824026178,34.48,145.56,145.51,2.2898]
[1750824026370,2.17430825,145.55,145.51,2.2898]
[1750824026778,2.17430825,145.55,145.53,6.8676]
[1750824027383,43.52100825,145.56,145.53,6.8678]
[1750824028079,2.17430825,145.55,145.54,6.8673]
[1750824028279,41.3467,145.56,145.54,6.8673]
[1750824029179,34.48,145.56,145.54,6.8673]
[1750824029382,34.48,145.56,145.55,6.8669]
[1750824029785,37.87714855,145.59,145.55,6.8669]
[1750824029983,6.8658,145.58,145.55,6.8669]
[1750824030282,37.87714855,145.59,145.55,6.8669]
[1750824031385,6.8658,145.58,145.55,6.8669]
[1750824032887,44.74234855,145.59,145.56,6.8662]
[1750824033582,37.87714855,145.59,145.57,6.8658]
[1750824033783,34.48,145.59,145.54,3.39714855]
[1750824034482,34.48,145.59,145.54,5.75164855]
[1750824034681,34.48,145.59,145.58,6.8655]
[1750824037296,34.48,145.59,145.57,6.8658]
[1750824037592,37.87714855,145.59,145.54,2.3545]
[1750824037891,37.87714855,145.59,145.56,6.8664]
[1750824038184,34.48,145.59,145.56,6.8664]
[1750824038389,41.3453,145.59,145.56,6.8664]
[1750824043493,6.8656,145.58,145.56,6.8664]
[1750824043994,6.8664,145.57,145.54,2.3545]
[1750824044194,3.39714855,145.58,145.52,2.3243]
[1750824044589,10.26294855,145.58,145.55,6.8667]
[1750824045398,6.8658,145.58,145.55,6.8667]
[1750824047887,4.92759834,145.57,145.55,6.8667]
[1750824048101,6.8658,145.58,145.55,6.8667]
[1750824050199,7.09434701,145.57,145.55,6.8667]
[1750824050393,2.17378446,145.57,145.55,6.8667]
[1750824053404,6.8658,145.58,145.56,6.8664]
[1750824053606,7.09512975,145.57,145.56,6.8664]
[1750824054904,2.17378446,145.57,145.56,6.8664]
[1750824055806,2.17378446,145.58,145.57,6.8658]
[1750824056105,4.92138254,145.58,145.57,6.8658]
[1750824056402,34.48,145.59,145.56,2.17378446]
[1750824057296,34.48,145.59,145.58,6.8655]
[1750824057498,39.40178378,145.59,145.58,6.8655]
[1750824058004,41.57556824,145.59,145.58,6.8655]
[1750824059008,2.17378446,145.61,145.6,6.8643]
[1750824059307,11.46419034,145.61,145.6,6.8643]
[1750824059807,7.11929495,145.61,145.6,6.8643]
[1750824060117,7.11929495,145.61,145.59,6.8649]
[1750824060311,4.94551049,145.6,145.59,6.8649]
[1750824060812,44.71849034,145.62,145.59,6.8649]
[1750824061009,4.95558308,145.61,145.59,6.8649]
[1750824061210,44.71849034,145.62,145.59,6.8649]
[1750824061398,4.95656611,145.61,145.59,6.8649]
[1750824061603,4.95656611,145.6,145.59,6.8649]
[1750824062711,4.95656611,145.6,145.56,2.2568]
[1750824062916,3.39479034,145.6,145.56,2.2568]
[1750824063412,10.25959034,145.6,145.57,6.8657]
[1750824064614,4.95890488,145.59,145.57,6.8657]
[1750824064801,10.25959034,145.6,145.57,6.8657]
[1750824065008,4.9591629,145.59,145.57,6.8657]
[1750824065209,10.25959034,145.6,145.57,6.8657]
[1750824065409,4.9594835,145.59,145.57,6.8657]
[1750824065610,10.25959034,145.6,145.57,6.8657]
[1750824065810,4.95948391,145.59,145.57,6.8657]
[1750824066105,10.25959034,145.6,145.57,6.8657]
[1750824066313,4.95948391,145.59,145.57,6.8657]
[1750824066515,10.25959034,145.6,145.57,6.8657]
[1750824066713,4.95917972,145.59,145.56,9.1231]
[1750824066915,4.95918355,145.58,145.53,12.80392747]
[1750824067109,3.39479034,145.6,145.53,12.80392747]
[1750824067309,6.8657,145.58,145.55,6.8666]
[1750824068917,6.8661,145.57,145.55,6.8666]
[1750824069119,6.8661,145.57,145.54,6.8672]
[1750824069306,37.83479034,145.58,145.52,17.41882747]
[1750824069506,37.83479034,145.58,145.52,4.6149]
[1750824069507,3.39479034,145.56,145.52,4.6149]
[1750824070015,6.8672,145.55,145.52,11.483]
[1750824071218,10.26139034,145.56,145.53,6.8677]
[1750824071410,37.83479034,145.58,145.52,4.6149]
[1750824071617,4.94983331,145.57,145.52,4.6149]
[1750824071820,4.94983331,145.56,145.54,6.8671]
[1750824072117,6.8662,145.57,145.54,6.8671]
[1750824072317,4.95092728,145.56,145.54,6.8671]
[1750824072509,6.8662,145.57,145.54,6.8671]
[1750824072711,4.95004895,145.56,145.54,6.8671]
[1750824073014,6.8662,145.57,145.54,6.8671]
[1750824073217,4.95004895,145.56,145.54,6.8671]
[1750824073519,6.8662,145.57,145.54,6.8671]
[1750824073820,4.95033112,145.56,145.54,6.8671]
[1750824074009,6.8662,145.57,145.54,6.8671]
[1750824074216,4.95093178,145.56,145.54,6.8671]
[1750824074417,6.8662,145.57,145.54,6.8671]
[1750824074617,4.95105249,145.56,145.54,6.8671]
[1750824074818,6.8662,145.57,145.54,6.8671]
[1750824075017,4.95105249,145.56,145.54,6.8671]
[1750824075220,6.8662,145.57,145.54,6.8671]
[1750824075421,4.93889064,145.56,145.54,6.8671]
[1750824075624,6.8662,145.57,145.54,6.8671]
[1750824075824,4.93889064,145.56,145.54,6.8671]
[1750824076120,6.8662,145.57,145.54,6.8671]
[1750824076317,4.93889262,145.56,145.54,6.8671]
[1750824076621,6.8662,145.57,145.54,6.8671]
[1750824076817,11.80559262,145.56,145.52,4.6149]
[1750824077023,37.83479034,145.58,145.52,4.6149]
[1750824077213,4.93884853,145.57,145.52,4.6149]
[1750824077420,4.93884853,145.56,145.54,6.8673]
[1750824077717,6.8662,145.57,145.54,6.8673]
[1750824077921,4.93797082,145.56,145.55,6.8668]
[1750824078117,4.93797082,145.56,145.52,4.6149]
[1750824078422,6.8662,145.57,145.53,6.8676]
[1750824078624,4.93796987,145.56,145.53,6.8676]
[1750824078818,6.8662,145.57,145.52,4.6149]
[1750824079024,4.93792974,145.56,145.53,6.8675]
[1750824079225,6.8662,145.57,145.53,6.8675]
[1750824079419,4.9376493,145.56,145.53,6.8675]
[1750824079723,6.8662,145.57,145.54,6.8674]
[1750824079926,4.93626174,145.56,145.54,6.8674]
[1750824080124,6.8662,145.57,145.54,6.8674]
[1750824080325,4.93633354,145.56,145.54,6.8674]
[1750824080530,6.8662,145.57,145.54,6.8674]
[1750824080724,4.9360093,145.56,145.54,6.8674]
[1750824081018,6.8662,145.57,145.54,6.8674]
[1750824081226,4.9360092,145.56,145.54,6.8674]
[1750824081426,6.8662,145.57,145.54,6.8674]
[1750824081726,4.93604528,145.56,145.55,6.8669]
[1750824082128,34.44,145.58,145.52,8.00969034]
[1750824082429,34.44,145.58,145.52,20.81361781]
[1750824083530,34.44,145.58,145.56,6.8663]
[1750824084134,34.44,145.58,145.57,6.866]
[1750824084326,39.37654384,145.58,145.57,6.866]
[1750824084933,39.37654384,145.58,145.56,6.8662]
[1750824085134,34.44,145.58,145.56,6.8662]
[1750824087829,37.83479034,145.58,145.52,17.41882747]
[1750824088131,3.39479034,145.56,145.52,2.2906]
[1750824088329,6.8672,145.55,145.52,9.1587]
[1750824088533,3.39479034,145.56,145.52,2.2906]
[1750824088730,3.39479034,145.56,145.5,12.80392747]
[1750824089231,6.8677,145.54,145.51,6.8685]
[1750824089436,6.8677,145.54,145.5,12.80392747]
[1750824089937,37.83479034,145.58,145.51,12.80392747]
[1750824090236,4.87719481,145.57,145.51,12.80392747]
[1750824090427,37.83479034,145.58,145.54,6.867]
[1750824090935,6.8661,145.57,145.54,6.867]
[1750824091736,6.8661,145.57,145.55,6.8668]
[1750824094329,9.03991275,145.57,145.55,6.8668]
[1750824096237,9.03991275,145.57,145.54,6.8672]
[1750824096744,2.17381275,145.55,145.53,6.8675]
[1750824097435,2.17381275,145.55,145.51,14.97774022]
[1750824097436,2.17381275,145.55,145.54,6.8674]
[1750824098026,9.04031275,145.56,145.54,6.8674]
[1750824098633,6.8662,145.57,145.55,6.8669]
[1750824098938,2.17381275,145.56,145.55,6.8669]
[1750824100942,9.04001275,145.57,145.55,6.8669]
[1750824103236,9.04001275,145.57,145.54,6.8672]
[1750824104142,9.04051275,145.56,145.53,6.8676]